[Event "54th Rubinstein Memorial-A 2018"]
[Site "Polanica-Zdroj"]
[Date "2018.08.22"]
[Round "5"]
[White "Psyk, Radoslaw"]
[Black "Bilczewski, Kacper"]
[Result "1-0"]
[ECO "B12"]
[WhiteElo "2304"]
[BlackElo "2089"]
[Annotator "NA"]
[PlyCount "77"]
[EventDate "2018.08.18"]
[EventType "swiss"]
[EventCountry "POL"]
[SourceTitle "playchess.com"]
[Source "ChessBase"]
[SourceQuality "1"]
[TimeControl "40/5400+30:1800+30"]

1. e4 {[%emt 0:00:00]} c6 {[%emt 0:00:59]} 2. d4 {[%emt 0:00:00]} g6 {[%emt 0:00:05]} 3. Nc3 {[%emt 0:00:16]} d5 {[%emt 0:00:05]} 4. Nf3 {[%emt 0:00:47]} Bg7 {[%emt 0:00:06]} 5. h3 {[%emt 0:00:26]} dxe4 {[%emt 0:00:24]} 6. Nxe4 {[%emt 0:00:10]} Nd7 {[%emt 0:00:04]} 7. Bc4 {[%emt 0:10:39]} Ngf6 {[%emt 0:05:27]} 8. Nxf6+ {[%emt 0:00:09]} Nxf6 {[%emt 0:00:24]} 9. O-O {[%emt 0:00:10]} O-O {[%emt 0:00:06]} 10. Re1 {[%emt 0:00:46]} Nd5 {[%emt 0:04:02]} 11. c3 {[%emt 0:02:16]} h6 {[%emt 0:00:21]} 12. Ne5 {[%emt 0:08:04]} Qd6 {[%emt 0:03:50]} 13. Bb3 {[%emt 0:09:00]} b5 {[%emt 0:05:54]} 14. Qe2 {[%emt 0:08:09]} a6 $16 {[%emt 0:03:53]} 15. Bd2 {[%emt 0:05:51]} Kh7 {[%emt 0:02:19]} 16. Rad1 {[%emt 0:02:28]} Bf5 {[%emt 0:03:06]} 17. c4 {[%emt 0:09:15]} bxc4 {[%emt 0:01:29]} 18. Qxc4 {[%emt 0:00:33]} Bd7 {[%emt 0:03:32]} 19. Rc1 {[%emt 0:02:40]} e6 {[%emt 0:02:27]} 20. h4 {[%emt 0:03:44]} Qe7 {[%emt 0:05:16]} 21. h5 {[%emt 0:01:03]} Bxe5 {[%emt 0:07:54]} 22. dxe5 {[%emt 0:00:56]} g5 {[%emt 0:05:17]} 23. Be3 {[%emt 0:03:52]} Nxe3 {[%emt 0:01:05]} 24. Rxe3 {[%emt 0:00:22]} f5 {[%emt 0:01:33]} 25. exf6 {[%emt 0:00:33]} Qxf6 {[%emt 0:00:13]} 26. Qc2+ {[%emt 0:10:34]} Kh8 {[%emt 0:03:46]} 27. Rce1 {[%emt 0:00:19]} Rae8 {[%emt 0:00:24]} 28. Re5 {[%emt 0:01:45]} Bc8 {[%emt 0:02:21]} 29. R1e2 {[%emt 0:00:49]} Qf7 {[%emt 0:03:06]} 30. Qc3 {[%emt 0:00:23]} Kg8 {[%emt 0:00:34]} 31. Qxc6 {[%emt 0:05:43]} Qxh5 {[%emt 0:00:41]} 32. Bxe6+ {[%emt 0:00:24]} Bxe6 {[%emt 0:00:05]} 33. Rxe6 {[%emt 0:00:07]} Rxe6 {[%emt 0:00:25]} 34. Qxe6+ {[%emt 0:00:06]} Qf7 {[%emt 0:00:37]} 35. Qxh6 {[%emt 0:01:11]} Qxa2 {[%emt 0:00:09]} 36. Qxg5+ {[%emt 0:00:11]} Kh8 {[%emt 0:00:06]} 37. Qh6+ {[%emt 0:00:11]} Kg8 {[%emt 0:00:06]} 38. Qg6+ {[%emt 0:00:24]} Kh8 {[%emt 0:00:09]} 39. Re3 {[%emt 0:00:09]} 1-0

[Event "54th Rubinstein Memorial-A 2018"]
[Site "Polanica-Zdroj"]
[Date "2018.08.21"]
[Round "5"]
[White "Reza, Wojciech"]
[Black "Lewtak, Damian"]
[Result "0-1"]
[ECO "B40"]
[WhiteElo "2303"]
[BlackElo "2369"]
[Annotator "NA"]
[PlyCount "52"]
[EventDate "2018.08.18"]
[EventType "swiss"]
[EventCountry "POL"]
[SourceTitle "playchess.com"]
[Source "ChessBase"]
[SourceQuality "1"]
[TimeControl "40/5400+30:1800+30"]

1. e4 {[%emt 0:00:00]} c5 {[%emt 0:00:00]} 2. Nf3 {[%emt 0:00:00]} e6 {[%emt 0:00:07]} 3. b3 {[%emt 0:03:20]} b6 {[%emt 0:02:15]} 4. Bd3 {[%emt 0:00:08]} Bb7 {[%emt 0:03:55]} 5. O-O {[%emt 0:00:29]} Ne7 {[%emt 0:02:06]} 6. Re1 {[%emt 0:03:49]} Ng6 {[%emt 0:02:33]} 7. Bb2 {[%emt 0:05:05]} Nc6 {[%emt 0:02:41]} 8. Bb5 {[%emt 0:19:26]} Nh4 {[%emt 0:07:40]} 9. c3 {[%emt 0:18:28]} a6 {[%emt 0:01:56]} 10. Bf1 {[%emt 0:01:22]} g6 {[%emt 0:10:34]} 11. Nxh4 {[%emt 0:03:07]} Qxh4 {[%emt 0:00:06]} 12. Na3 {[%emt 0:00:33]} b5 {[%emt 0:22:03]} 13. c4 {[%emt 0:06:28]} Nd4 {[%emt 0:01:04]} 14. Nc2 {[%emt 0:01:28]} Bg7 {[%emt 0:07:17]} 15. Nxd4 {[%emt 0:00:31]} cxd4 {[%emt 0:02:20]} 16. cxb5 {[%emt 0:01:33]} axb5 {[%emt 0:02:05]} 17. Bxb5 {[%emt 0:00:46]} Qg5 {[%emt 0:03:29]} 18. a4 {[%emt 0:04:07]} f5 {[%emt 0:01:08]} 19. d3 {[%emt 0:00:36]} O-O {[%emt 0:07:13]} 20. Qc1 {[%emt 0:04:40]} Qh4 {[%emt 0:02:04]} 21. g3 {[%emt 0:11:20]} Qh3 {[%emt 0:00:28]} 22. f4 {[%emt 0:05:03]} g5 {[%emt 0:01:11]} 23. Ba3 {[%emt 0:06:03]} fxe4 {[%emt 0:03:56]} 24. dxe4 {[%emt 0:00:42]} d3 {[%emt 0:06:13]} 25. Bxf8 {[%emt 0:01:08]} Bd4+ {[%emt 0:00:10]} 26. Re3 {[%emt 0:01:22]} gxf4 {[%emt 0:02:10]} 0-1

[Event "54th Rubinstein Memorial-A 2018"]
[Site "Polanica-Zdroj"]
[Date "2018.08.21"]
[Round "5"]
[White "Cherepov, Alexej"]
[Black "Klepek, Witold"]
[Result "1/2-1/2"]
[ECO "A46"]
[WhiteElo "2245"]
[BlackElo "2139"]
[Annotator "NA"]
[PlyCount "62"]
[EventDate "2018.08.18"]
[EventType "swiss"]
[EventCountry "POL"]
[SourceTitle "playchess.com"]
[Source "ChessBase"]
[SourceQuality "1"]
[TimeControl "40/5400+30:1800+30"]

1. d4 {[%emt 0:00:00]} Nf6 {[%emt 0:00:00]} 2. Nf3 {[%emt 0:00:11]} e6 {[%emt 0:00:16]} 3. c4 {[%emt 0:00:24]} d5 {[%emt 0:00:06]} 4. g3 {[%emt 0:00:14]} Bb4+ {[%emt 0:02:40]} 5. Bd2 {[%emt 0:00:15]} Bd6 {[%emt 0:01:31]} 6. Bg2 {[%emt 0:01:16]} c6 {[%emt 0:00:42]} 7. Qc2 {[%emt 0:05:16]} O-O {[%emt 0:01:11]} 8. O-O {[%emt 0:00:20]} Nbd7 {[%emt 0:00:13]} 9. Bg5 {[%emt 0:04:19]} Qe7 {[%emt 0:06:25]} 10. Nbd2 {[%emt 0:03:47]} h6 {[%emt 0:02:01]} 11. Bxf6 {[%emt 0:00:07]} Nxf6 {[%emt 0:00:05]} 12. e4 {[%emt 0:00:18]} dxe4 {[%emt 0:01:27]} 13. Nxe4 {[%emt 0:00:08]} Nxe4 {[%emt 0:00:37]} 14. Qxe4 {[%emt 0:00:05]} Bd7 {[%emt 0:02:50]} 15. c5 {[%emt 0:03:04]} Bc7 {[%emt 0:00:08]} 16. b4 {[%emt 0:00:18]} Rfd8 {[%emt 0:02:03]} 17. Ne5 {[%emt 0:02:20]} Be8 {[%emt 0:01:35]} 18. Qe3 {[%emt 0:10:31]} a5 {[%emt 0:05:13]} 19. a3 {[%emt 0:00:48]} f6 {[%emt 0:01:05]} 20. Nf3 {[%emt 0:04:54]} Bh5 {[%emt 0:03:16]} 21. Rfe1 {[%emt 0:03:09]} axb4 {[%emt 0:08:03]} 22. axb4 {[%emt 0:02:20]} Rxa1 {[%emt 0:00:05]} 23. Rxa1 {[%emt 0:00:03]} e5 {[%emt 0:00:18]} 24. Re1 {[%emt 0:03:20]} Bxf3 {[%emt 0:05:12]} 25. Bxf3 {[%emt 0:00:04]} Kf8 {[%emt 0:02:29]} 26. dxe5 {[%emt 0:03:04]} Qxe5 {[%emt 0:00:40]} 27. b5 {[%emt 0:13:17]} Qxe3 {[%emt 0:04:02]} 28. Rxe3 {[%emt 0:01:15]} Be5 {[%emt 0:00:05]} 29. bxc6 {[%emt 0:00:21]} bxc6 {[%emt 0:00:06]} 30. Bxc6 {[%emt 0:00:32]} Rc8 {[%emt 0:00:07]} 31. Bf3 {[%emt 0:00:29]} Bd4 {[%emt 0:00:42]} 1/2-1/2

[Event "54th Rubinstein Memorial-A 2018"]
[Site "Polanica-Zdroj"]
[Date "2018.08.21"]
[Round "5"]
[White "Kumala, Aleksander"]
[Black "Domanski, Lukasz"]
[Result "1-0"]
[ECO "D00"]
[WhiteElo "2238"]
[BlackElo "2094"]
[Annotator "NA"]
[PlyCount "41"]
[EventDate "2018.08.18"]
[EventType "swiss"]
[EventCountry "POL"]
[SourceTitle "playchess.com"]
[Source "ChessBase"]
[SourceQuality "1"]
[TimeControl "40/5400+30:1800+30"]

1. d4 {[%emt 0:00:00]} d5 {[%emt 0:00:00]} 2. Bf4 {[%emt 0:00:00]} g6 {[%emt 0:00:00]} 3. e3 {[%emt 0:01:55]} Bg7 {[%emt 0:00:00]} 4. Nf3 {[%emt 0:01:30]} Nf6 {[%emt 0:00:10]} 5. h3 {[%emt 0:00:23]} c5 {[%emt 0:00:58]} 6. c3 {[%emt 0:02:11]} Nc6 {[%emt 0:02:28]} 7. Nbd2 {[%emt 0:05:18]} O-O {[%emt 0:00:16]} 8. dxc5 {[%emt 0:03:57]} a5 {[%emt 0:00:58]} 9. Bb5 {[%emt 0:01:59]} Nd7 {[%emt 0:00:37]} 10. Nb3 {[%emt 0:04:18]} a4 {[%emt 0:33:04]} 11. Nbd4 {[%emt 0:00:52]} Qa5 {[%emt 0:13:32]} 12. Nxc6 {[%emt 0:08:07]} Qxb5 {[%emt 0:04:45]} 13. Nxe7+ {[%emt 0:00:09]} Kh8 {[%emt 0:00:18]} 14. Nxd5 {[%emt 0:09:19]} Nxc5 {[%emt 0:05:32]} 15. Nb4 {[%emt 0:18:41]} a3 {[%emt 0:06:37]} 16. Nd4 {[%emt 0:01:32]} Bxd4 {[%emt 0:05:52]} 17. Qxd4+ {[%emt 0:00:11]} Kg8 {[%emt 0:04:04]} 18. b3 {[%emt 0:01:16]} Bf5 {[%emt 0:04:43]} 19. Bd6 {[%emt 0:03:04]} Ne6 {[%emt 0:01:24]} 20. Qd5 {[%emt 0:00:11]} Qxd5 {[%emt 0:01:38]} 21. Nxd5 {[%emt 0:00:08]} 1-0

[Event "54th Rubinstein Memorial-A 2018"]
[Site "Polanica-Zdroj"]
[Date "2018.08.22"]
[Round "5"]
[White "Okrucinski, Tadeusz"]
[Black "Manik, Mikulas"]
[Result "0-1"]
[ECO "E61"]
[WhiteElo "2182"]
[BlackElo "2408"]
[Annotator "NA"]
[PlyCount "74"]
[EventDate "2018.08.18"]
[EventType "swiss"]
[EventCountry "POL"]
[SourceTitle "playchess.com"]
[Source "ChessBase"]
[SourceQuality "1"]
[TimeControl "40/5400+30:1800+30"]

1. d4 Nf6 2. c4 g6 3. Nc3 Bg7 4. g3 O-O 5. Bg2 c6 {LiveBook: 211 Games} 6. e4 d6 7. Nf3 e5 8. O-O exd4 9. Nxd4 Ng4 10. h3 Qf6 11. Nc2 Ne5 12. Qe2 Na6 ({Günstiger ist} 12... Qe6 $14) 13. f4 Nd7 14. Be3 Qe7 $16 15. Bd4 Nf6 16. Rae1 Nc5 17. Qd2 a5 18. g4 Rd8 19. f5 Nfd7 20. Bxg7 Kxg7 21. f6+ Nxf6 22. Nd5 cxd5 23. exd5 Qc7 24. Rxf6 Nd7 25. Rf4 Ne5 26. b3 Qe7 27. Nd4 Bd7 28. c5 Kg8 29. Rfe4 f6 30. g5 Re8 31. gxf6 Qxf6 32. cxd6 Qxd6 33. Qe3 Nf7 34. Ne6 Re7 35. Qd4 Nh6 36. Qc5 Rxe6 37. dxe6 Qxc5+ 0-1

[Event "54th Rubinstein Memorial-A 2018"]
[Site "Polanica-Zdroj"]
[Date "2018.08.22"]
[Round "5"]
[White "Sanz Wawer, Daniel"]
[Black "Djuric, Stefan"]
[Result "1/2-1/2"]
[ECO "E81"]
[WhiteElo "2180"]
[BlackElo "2352"]
[Annotator "NA"]
[PlyCount "43"]
[EventDate "2018.08.18"]
[EventType "swiss"]
[EventCountry "POL"]
[SourceTitle "playchess.com"]
[Source "ChessBase"]
[SourceQuality "1"]
[TimeControl "40/5400+30:1800+30"]

1. d4 {[%emt 0:00:00]} Nf6 {[%emt 0:09:59]} 2. c4 {[%emt 0:00:00]} g6 {[%emt 0:00:25]} 3. f3 {[%emt 0:00:01]} Bg7 {[%emt 0:01:01]} 4. e4 {[%emt 0:00:19]} d6 {[%emt 0:00:17]} 5. Nc3 {[%emt 0:00:20]} O-O {[%emt 0:00:13]} 6. Nge2 {[%emt 0:00:14]} c5 {[%emt 0:00:52]} 7. d5 {[%emt 0:00:10]} a6 {[%emt 0:01:35]} 8. Ng3 {[%emt 0:00:47]} Nfd7 {[%emt 0:02:54]} 9. Be3 {[%emt 0:13:42]} Qa5 {[%emt 0:03:20]} 10. Qd2 {[%emt 0:05:28]} b5 {[%emt 0:00:33]} 11. Be2 {[%emt 0:06:04]} Nb6 {[%emt 0:04:35]} 12. cxb5 {[%emt 0:07:26]} axb5 {[%emt 0:00:14]} 13. Bh6 {[%emt 0:08:25]} b4 $11 {[%emt 0:11:00]} 14. Bxg7 {[%emt 0:00:25]} Kxg7 {[%emt 0:00:13]} 15. Nd1 {[%emt 0:01:24]} e5 {[%emt 0:08:32]} 16. Nh5+ {[%emt 0:11:29]} gxh5 {[%emt 0:00:23]} 17. Qg5+ {[%emt 0:00:10]} Kh8 {[%emt 0:00:11]} 18. Qf6+ {[%emt 0:00:14]} Kg8 {[%emt 0:00:12]} 19. Qg5+ {[%emt 0:00:13]} Kh8 {[%emt 0:00:15]} 20. Qf6+ {[%emt 0:00:11]} Kg8 {[%emt 0:00:12]} 21. Qg5+ {[%emt 0:00:43]} Kh8 {[%emt 0:00:12]} 22. Qf6+ 1/2-1/2

[Event "54th Rubinstein Memorial-A 2018"]
[Site "Polanica-Zdroj"]
[Date "2018.08.22"]
[Round "5"]
[White "Jaskolka, Tomasz"]
[Black "Reza, Wojciech"]
[Result "1-0"]
[ECO "E10"]
[WhiteElo "2165"]
[BlackElo "2303"]
[Annotator "ChessBase"]
[PlyCount "114"]
[EventDate "2018.08.18"]
[EventType "swiss"]
[EventCountry "POL"]
[SourceTitle "playchess.com"]
[Source "ChessBase"]
[SourceQuality "1"]
[TimeControl "40/5400+30:1800+30"]

1. d4 {[%emt 0:00:00]} Nf6 {[%emt 0:00:05]} 2. c4 {[%emt 0:00:00]} e6 {[%emt 0:01:05]} 3. Nf3 {[%emt 0:00:15]} c5 {[%emt 0:00:38]} 4. d5 {[%emt 0:00:33]} exd5 {[%emt 0:02:05]} 5. cxd5 {[%emt 0:05:33]} Bd6 {[%emt 0:00:12]} 6. Nc3 {[%emt 0:06:42]} Bc7 {[%emt 0:00:20]} 7. Bg5 {[%emt 0:08:21]} d6 {[%emt 0:11:26]} 8. Qa4+ {[%emt 0:07:05]} Nbd7 {[%emt 0:03:06]} 9. e3 {[%emt 0:01:34]} a6 {[%emt 0:04:38]} 10. Bd3 {[%emt 0:06:34]} h6 {[%emt 0:01:42]} 11. Bh4 {[%emt 0:10:46]} Qe7 {[%emt 0:11:34]} 12. Ne4 {[%emt 0:12:07]} g5 {[%emt 0:07:58]} 13. Nfxg5 {[%emt 0:01:26]} hxg5 {[%emt 0:00:45]} 14. Bxg5 {[%emt 0:00:11]} Kf8 {[%emt 0:10:46]} 15. Nxf6 {[%emt 0:17:41]} Nxf6 {[%emt 0:00:27]} 16. Qf4 {[%emt 0:00:45]} Bd8 {[%emt 0:01:09]} 17. O-O-O {[%emt 0:07:32]} Qe5 {[%emt 0:03:36]} 18. Qxe5 {[%emt 0:01:50]} dxe5 {[%emt 0:00:03]} 19. e4 {[%emt 0:01:53]} Bd7 {[%emt 0:01:09]} 20. f3 {[%emt 0:00:53]} c4 {[%emt 0:10:35]} 21. Be2 {[%emt 0:00:56]} Rc8 {[%emt 0:00:25]} 22. Bd2 {[%emt 0:01:27]} Ba4 {[%emt 0:01:46]} 23. Rdf1 {[%emt 0:00:35]} Bb6 {[%emt 0:02:06]} 24. Bd1 {[%emt 0:01:08]} Bxd1 {[%emt 0:01:27]} 25. Rxd1 {[%emt 0:00:24]} Bd4 {[%emt 0:00:16]} 26. Bc3 {[%emt 0:00:36]} Bxc3 {[%emt 0:02:27]} 27. bxc3 {[%emt 0:01:32]} Ke7 {[%emt 0:01:30]} 28. Kd2 {[%emt 0:00:54]} Rcg8 {[%emt 0:01:01]} 29. g3 {[%emt 0:00:50]} Nd7 {[%emt 0:03:04]} 30. Ke3 {[%emt 0:01:08]} Rh3 {[%emt 0:00:23]} 31. f4 {[%emt 0:01:27]} f6 {[%emt 0:04:07]} 32. fxe5 {[%emt 0:00:23]} Nxe5 {[%emt 0:01:48]} 33. Rb1 {[%emt 0:00:37]} b5 {[%emt 0:01:26]} 34. a4 {[%emt 0:00:02]} Rb8 {[%emt 0:01:59]} 35. axb5 {[%emt 0:00:27]} axb5 {[%emt 0:01:24]} 36. Ra1 {[%emt 0:00:52]} Rb6 {[%emt 0:04:50]} 37. Ra7+ {[%emt 0:00:53]} Kd6 {[%emt 0:00:13]} 38. Rf1 {[%emt 0:00:13]} Ng4+ {[%emt 0:02:47]} 39. Kd4 {[%emt 0:00:13]} Rh6 {[%emt 0:01:06]} 40. h3 {[%emt 0:00:00]} Ne5 {[%emt 0:00:00]} 41. g4 {[%emt 0:03:54]} Nd7 {[%emt 0:08:54]} 42. g5 {[%emt 0:16:23]} Rh4 {[%emt 0:01:25]} 43. Rf3 {[%emt 0:07:41]} f5 {[%emt 0:09:54]} 44. Rxf5 {[%emt 0:00:32]} Ke7 {[%emt 0:00:08]} 45. Re5+ {[%emt 0:03:49]} Kd8 {[%emt 0:00:06]} 46. Re6 {[%emt 0:00:37]} Rxe6 {[%emt 0:01:17]} 47. dxe6 {[%emt 0:00:03]} Nb8 {[%emt 0:00:18]} 48. e7+ {[%emt 0:01:12]} Ke8 {[%emt 0:00:21]} 49. Ra8 {[%emt 0:00:04]} Kxe7 {[%emt 0:01:48]} 50. Rxb8 {[%emt 0:00:03]} Rxh3 {[%emt 0:00:25]} 51. Rxb5 {[%emt 0:00:10]} Kd6 {[%emt 0:00:19]} 52. Rb6+ {[%emt 0:00:38]} Kc7 {[%emt 0:00:08]} 53. Rb4 {[%emt 0:00:18]} Rg3 {[%emt 0:00:09]} 54. Rxc4+ {[%emt 0:00:25]} Kd6 {[%emt 0:00:03]} 55. Rc5 {[%emt 0:00:26]} Rg1 {[%emt 0:00:09]} 56. Rd5+ {[%emt 0:00:14]} Ke6 {[%emt 0:00:03]} 57. c4 Rh1 1-0

[Event "54th Rubinstein Memorial-A 2018"]
[Site "Polanica-Zdroj"]
[Date "2018.08.22"]
[Round "5"]
[White "Zaleski, Lukasz"]
[Black "Betkowski, Andrzej"]
[Result "1/2-1/2"]
[ECO "C15"]
[WhiteElo "2164"]
[BlackElo "2041"]
[Annotator "NA"]
[PlyCount "69"]
[EventDate "2018.08.18"]
[EventType "swiss"]
[EventCountry "POL"]
[SourceTitle "playchess.com"]
[Source "ChessBase"]
[SourceQuality "1"]
[TimeControl "40/5400+30:1800+30"]

1. e4 e6 2. d4 d5 3. Nc3 Bb4 4. exd5 exd5 5. Bd3 $11 Nf6 6. Nge2 O-O 7. O-O Re8 8. Bg5 c6 9. Ng3 Nbd7 10. Nf5 Nf8 11. Qf3 Bxf5 12. Qxf5 Be7 13. Bf4 Qd7 14. Rfe1 g6 15. Qxd7 N6xd7 16. Ne2 Ne6 17. Bg3 f5 18. c3 Bg5 19. Bd6 Bd2 20. Red1 Bh6 21. f4 Bf8 22. Be5 Bg7 23. h3 Nf6 24. Bxf6 Bxf6 25. g4 fxg4 26. hxg4 Re7 27. f5 gxf5 28. gxf5 Ng5 29. Nf4 Rae8 30. Ng2 Rg7 31. Kf2 Nh3+ 32. Kf3 Ng5+ 33. Kf2 Nh3+ 34. Kf3 Ng5+ 35. Kf2 1/2-1/2

[Event "54th Rubinstein Memorial-A 2018"]
[Site "Polanica-Zdroj"]
[Date "2018.08.22"]
[Round "5"]
[White "Kozak, Antoni"]
[Black "Cherepov, Alexej"]
[Result "1/2-1/2"]
[ECO "A45"]
[WhiteElo "2157"]
[BlackElo "2245"]
[Annotator "NA"]
[PlyCount "75"]
[EventDate "2018.08.18"]
[EventType "swiss"]
[EventCountry "POL"]
[SourceTitle "playchess.com"]
[Source "ChessBase"]
[SourceQuality "1"]
[TimeControl "40/5400+30:1800+30"]

1. d4 {[%emt 0:00:00]} Nf6 {[%emt 0:00:00]} 2. Bf4 {[%emt 0:00:00]} c5 {[%emt 0:00:55]} 3. d5 {[%emt 0:00:00]} Qb6 {[%emt 0:02:49]} 4. Nc3 {[%emt 0:00:00]} Qxb2 {[%emt 0:03:51]} 5. Bd2 {[%emt 0:00:06]} Qb6 {[%emt 0:01:50]} 6. e4 {[%emt 0:01:55]} d6 {[%emt 0:00:13]} 7. f4 {[%emt 0:04:03]} g6 {[%emt 0:06:28]} 8. e5 {[%emt 0:23:21]} dxe5 {[%emt 0:15:56]} 9. fxe5 {[%emt 0:00:04]} Nfd7 $1 {[%emt 0:01:04]} 10. Nf3 $14 {[%emt 0:01:55]} Bg7 {[%emt 0:05:40]} 11. Rb1 {[%emt 0:02:58]} Qd8 {[%emt 0:11:03]} 12. e6 {[%emt 0:01:48]} fxe6 {[%emt 0:00:24]} 13. Ng5 {[%emt 0:00:05]} Nf6 {[%emt 0:05:08]} 14. Bb5+ {[%emt 0:00:13]} Kf8 {[%emt 0:00:04]} 15. dxe6 {[%emt 0:03:48]} Qd4 {[%emt 0:02:29]} 16. Ne2 {[%emt 0:07:15]} Qd5 {[%emt 0:16:23]} 17. Bc3 {[%emt 0:08:39]} Nc6 {[%emt 0:04:02]} 18. O-O {[%emt 0:00:31]} Qxg5 {[%emt 0:01:22]} 19. Bxc6 {[%emt 0:00:05]} Bxe6 {[%emt 0:01:03]} 20. Nf4 {[%emt 0:02:01]} Kf7 {[%emt 0:07:42]} 21. h4 {[%emt 0:02:39]} Qg4 {[%emt 0:02:44]} 22. Nxe6 {[%emt 0:00:13]} Qxd1 {[%emt 0:00:13]} 23. Ng5+ {[%emt 0:01:58]} Kg8 {[%emt 0:00:04]} 24. Rfxd1 {[%emt 0:00:12]} bxc6 {[%emt 0:00:04]} 25. Rb7 {[%emt 0:01:09]} h6 {[%emt 0:05:35]} 26. Ne6 {[%emt 0:00:17]} Re8 {[%emt 0:00:33]} 27. Rxa7 {[%emt 0:06:18]} Kf7 {[%emt 0:00:29]} 28. Nxg7 {[%emt 0:00:12]} Kxg7 {[%emt 0:01:03]} 29. Rd6 {[%emt 0:00:05]} Rhf8 {[%emt 0:02:48]} 30. Rxc6 {[%emt 0:00:09]} Kg8 {[%emt 0:00:29]} 31. Be5 {[%emt 0:04:29]} g5 {[%emt 0:01:03]} 32. hxg5 {[%emt 0:02:19]} hxg5 {[%emt 0:00:02]} 33. Rxc5 {[%emt 0:00:49]} Ne4 {[%emt 0:01:52]} 34. Rcc7 {[%emt 0:04:21]} Rf5 {[%emt 0:00:06]} 35. Rxe7 {[%emt 0:02:59]} Rxe5 {[%emt 0:00:24]} 36. Rg7+ {[%emt 0:00:46]} Kh8 {[%emt 0:00:03]} 37. Rh7+ {[%emt 0:00:11]} Kg8 {[%emt 0:00:04]} 38. Rag7+ {[%emt 0:00:13]} 1/2-1/2

[Event "54th Rubinstein Memorial-A 2018"]
[Site "Polanica-Zdroj"]
[Date "2018.08.22"]
[Round "5"]
[White "Klepek, Witold"]
[Black "Kucza, Karol"]
[Result "1/2-1/2"]
[ECO "C45"]
[WhiteElo "2139"]
[BlackElo "2342"]
[Annotator "NA"]
[PlyCount "64"]
[EventDate "2018.08.18"]
[EventType "swiss"]
[EventCountry "POL"]
[SourceTitle "playchess.com"]
[Source "ChessBase"]
[SourceQuality "1"]
[TimeControl "40/5400+30:1800+30"]

1. e4 {[%emt 0:00:37]} e5 {[%emt 0:00:00]} 2. Nf3 {[%emt 0:00:11]} Nc6 {[%emt 0:00:00]} 3. d4 {[%emt 0:00:07]} exd4 {[%emt 0:00:00]} 4. Nxd4 {[%emt 0:00:07]} Nf6 {[%emt 0:00:00]} 5. Nxc6 {[%emt 0:00:07]} bxc6 {[%emt 0:00:01]} 6. e5 {[%emt 0:00:09]} Qe7 {[%emt 0:00:06]} 7. Qe2 {[%emt 0:00:05]} Nd5 {[%emt 0:00:07]} 8. c4 {[%emt 0:00:06]} Ba6 {[%emt 0:00:06]} 9. b3 {[%emt 0:00:06]} g6 {[%emt 0:00:30]} 10. Bb2 {[%emt 0:00:38]} Bg7 {[%emt 0:00:22]} 11. g3 {[%emt 0:00:12]} O-O {[%emt 0:00:15]} 12. Bg2 {[%emt 0:00:05]} Rae8 {[%emt 0:00:10]} 13. O-O {[%emt 0:00:24]} Bxe5 {[%emt 0:00:08] C45: Schottische Partie} 14. Qxe5 {[%emt 0:00:06]} Qxe5 {[%emt 0:00:07]} 15. Bxe5 {[%emt 0:00:05]} Rxe5 {[%emt 0:00:08]} 16. cxd5 {[%emt 0:00:05]} Bxf1 {[%emt 0:00:06]} 17. Kxf1 {[%emt 0:00:06]} cxd5 {[%emt 0:00:06]} 18. Na3 {[%emt 0:02:03]} c6 {[%emt 0:04:48]} 19. Nc2 {[%emt 0:00:36]} (19. Rd1 Rfe8 20. Bf3 Kf8 21. Nc2 {½-½ (32) Salgado Lopez,I (2644)-Kryvoruchko,Y (2689) Riadh 2017}) 19... Rb8 $146 {[%emt 0:01:17]} ({Vorgänger:} 19... Rfe8 20. Bf3 a5 21. Rd1 {½-½ (88) Kovernikov,B (2338)-Schwarz,J (2253) ICCF email 2011}) 20. Rd1 {[%emt 0:00:43]} Kf8 {[%emt 0:03:54]} 21. Rd4 {[%emt 0:03:26]} Ree8 {[%emt 0:09:11]} 22. Rh4 {[%emt 0:08:24]} h5 {[%emt 0:04:07]} 23. Ra4 {[%emt 0:00:04]} Rb7 {[%emt 0:00:07]} 24. Bf3 {[%emt 0:01:29]} Ke7 {[%emt 0:00:18]} 25. Ke2 {[%emt 0:00:43]} Kd6+ {[%emt 0:02:56]} 26. Kd2 {[%emt 0:00:37]} Re7 {[%emt 0:13:56]} 27. Ne1 {[%emt 0:06:16]} Re8 {[%emt 0:09:47]} 28. Nd3 $11 {[%emt 0:00:46]} Ra8 {[%emt 0:18:53]} 29. Ra5 {[%emt 0:13:28]} a6 {[%emt 0:08:17]} 30. Be2 {[%emt 0:02:23]} Rb5 {[%emt 0:00:49]} 31. Ra4 {[%emt 0:00:09]} a5 {[%emt 0:00:09]} 32. h4 {[%emt 0:09:21]} Rbb8 {[%emt 0:04:10]} 1/2-1/2

[Event "54th Rubinstein Memorial-A 2018"]
[Site "Polanica-Zdroj"]
[Date "2018.08.21"]
[Round "5"]
[White "Bilczewski, Kacper"]
[Black "Okrucinski, Tadeusz"]
[Result "1/2-1/2"]
[ECO "B22"]
[WhiteElo "2089"]
[BlackElo "2182"]
[Annotator "NA"]
[PlyCount "81"]
[EventDate "2018.08.18"]
[EventType "swiss"]
[EventCountry "POL"]
[SourceTitle "playchess.com"]
[Source "ChessBase"]
[SourceQuality "1"]
[TimeControl "40/5400+30:1800+30"]

1. e4 {[%emt 0:00:00]} c5 {[%emt 0:00:00]} 2. c3 {[%emt 0:00:00]} d5 {[%emt 0:00:50]} 3. exd5 {[%emt 0:00:00]} Qxd5 {[%emt 0:00:07]} 4. d4 {[%emt 0:00:00]} Nf6 {[%emt 0:00:48]} 5. Nf3 {[%emt 0:00:00]} cxd4 {[%emt 0:00:09]} 6. cxd4 {[%emt 0:00:00]} e6 {[%emt 0:00:06]} 7. Nc3 {[%emt 0:00:08]} Qd6 {[%emt 0:00:26]} 8. Be2 {[%emt 0:00:11]} Be7 {[%emt 0:00:44]} 9. O-O {[%emt 0:00:05]} O-O {[%emt 0:02:31]} 10. Nb5 {[%emt 0:00:09]} Qd8 {[%emt 0:01:44]} 11. Bf4 {[%emt 0:00:06]} Nc6 {[%emt 0:06:24]} 12. Rc1 {[%emt 0:02:42]} Nd5 {[%emt 0:01:25]} 13. Bg3 {[%emt 0:00:06]} a6 {[%emt 0:07:55]} 14. Nc3 {[%emt 0:08:22]} Nxc3 {[%emt 0:19:30]} 15. bxc3 {[%emt 0:00:29]} Qa5 {[%emt 0:12:34]} 16. Qb3 {[%emt 0:02:40]} Rd8 {[%emt 0:01:18]} 17. Rfd1 {[%emt 0:00:10]} Qa3 {[%emt 0:05:05]} 18. c4 {[%emt 0:07:19]} Qxb3 {[%emt 0:00:38]} 19. axb3 {[%emt 0:00:07]} Bf6 {[%emt 0:06:34]} 20. d5 {[%emt 0:25:48]} exd5 {[%emt 0:00:20]} 21. cxd5 {[%emt 0:00:06]} Nb4 {[%emt 0:00:23]} 22. d6 {[%emt 0:01:05]} Na2 {[%emt 0:07:16]} 23. Rc7 {[%emt 0:02:50]} Nc3 {[%emt 0:00:13]} 24. Re1 {[%emt 0:03:10]} Nxe2+ {[%emt 0:08:00]} 25. Rxe2 {[%emt 0:00:03]} b5 {[%emt 0:00:40]} 26. b4 {[%emt 0:05:57]} h6 {[%emt 0:05:28]} 27. h3 {[%emt 0:11:27]} Be6 {[%emt 0:04:22]} 28. Rd2 {[%emt 0:01:05]} Rac8 {[%emt 0:06:21]} 29. Rdc2 {[%emt 0:03:52]} Ra8 {[%emt 0:00:35]} 30. R2c5 {[%emt 0:06:33]} a5 {[%emt 0:00:21]} 31. bxa5 {[%emt 0:00:46]} Rxa5 {[%emt 0:00:07]} 32. Rb7 {[%emt 0:02:08]} Ra1+ {[%emt 0:01:32]} 33. Kh2 {[%emt 0:00:06]} Bc4 {[%emt 0:00:40]} 34. Nd2 {[%emt 0:07:00]} Bd4 {[%emt 0:00:21]} 35. Rcc7 {[%emt 0:00:46]} Be6 {[%emt 0:00:54]} 36. Nf3 {[%emt 0:02:27]} Bf6 {[%emt 0:00:38]} 37. Rxb5 {[%emt 0:00:06]} Rd1 {[%emt 0:00:07]} 38. Rbb7 {[%emt 0:02:52]} Ra8 {[%emt 0:01:06]} 39. Ra7 {[%emt 0:01:16]} Rb8 {[%emt 0:00:14]} 40. Rab7 {[%emt 0:00:00]} Ra8 {[%emt 0:00:00]} 41. Ra7 {[%emt 0:10:48]} 1/2-1/2